fUST/lending_fUST_20250713
["ID","MTS","AMOUNT","RATE_DAILY","PERIOD"]
[371571134,1752358254245,-384.87,0.0001863,2]
[371571135,1752358254257,-460.0,0.0001863,2]
[371571136,1752358254268,-460.0,0.0001863,2]
[371571137,1752358254277,-1452.21,0.0001863,2]
[371571138,1752358254288,-460.0,0.0001863,2]
[371571139,1752358254297,-460.0,0.0001863,2]
[371571140,1752358254307,-4048.32,0.0001863,2]
[371571141,1752358254316,-888.82,0.0001863,2]
[371571142,1752358254326,-538.28,0.0001863,2]
[371571143,1752358254335,-460.0,0.0001863,2]
[371571144,1752358254344,-460.0,0.0001863,2]
[371571145,1752358254354,-460.0,0.0001863,2]
[371571146,1752358254459,-460.0,0.0001863,2]
[371571147,1752358254469,-460.0,0.0001863,2]
[371571148,1752358254479,-460.0,0.0001863,2]
[371571149,1752358254491,-1107.74,0.0001863,2]
[371571150,1752358254503,-467.32,0.0001863,2]
[371571151,1752358254513,-542.87,0.0001863,2]
[371571152,1752358254523,-460.0,0.0001863,2]
[371571153,1752358254533,-577.85,0.0001863,2]
[371571154,1752358254543,-460.0,0.0001863,2]
[371571155,1752358254553,-757.63,0.0001863,2]
[371571156,1752358254562,-460.0,0.0001863,2]
[371571157,1752358254571,-460.0,0.0001863,2]
[371571158,1752358254581,-495.29,0.0001863,2]
[371571159,1752358254590,-595.14,0.0001863,2]
[371571160,1752358254600,-460.0,0.0001863,2]
[371571161,1752358254610,-460.0,0.0001863,2]
[371571162,1752358254619,-460.0,0.0001863,2]
[371571163,1752358254628,-702.1,0.0001863,2]
[371571164,1752358254637,-460.0,0.0001863,2]
[371571165,1752358254646,-460.0,0.0001863,2]
[371571166,1752358254655,-460.0,0.0001863,2]
[371571167,1752358254665,-460.0,0.0001863,2]
[371571168,1752358254674,-804.39,0.0001863,2]
[371571169,1752358254683,-460.0,0.0001863,2]
[371571170,1752358254692,-460.0,0.0001863,2]
[371571171,1752358254702,-460.0,0.0001863,2]
[371571172,1752358254711,-460.0,0.0001863,2]
[371571173,1752358254720,-460.0,0.0001863,2]
[371571174,1752358254730,-369.47744549,0.0001863,2]
[371571175,1752358254739,-347.84,0.0001863,2]
[371571176,1752358254750,-460.0,0.0001863,2]
[371571177,1752358254759,-460.0,0.0001863,2]
[371571178,1752358254769,-254.08713535,0.0001863,2]
[371571179,1752358254778,-772.88,0.0001863,2]
[371571180,1752358254787,-460.0,0.0001863,2]
[371571181,1752358254797,-460.0,0.0001863,2]
[371571182,1752358254806,-460.0,0.0001863,2]
[371571183,1752358254816,-1500.0,0.00018668,2]
[371571184,1752358254825,-1192.13341016,0.00018723,2]
[371571185,1752358254834,-526.69582989,0.00018723,2]
[371571186,1752358254844,-1803.03891771,0.00018762,2]
[371571187,1752358254854,-1026.35875128,0.00018839,2]
[371571188,1752358254863,-1500.0,0.00018867,2]
[371571189,1752358254872,-151.0,0.000189,2]
[371571190,1752358254883,-500.0,0.00018901,2]
[371571191,1752358254894,-500.0,0.00018901,2]
[371571192,1752358254903,-1059.96395971,0.00018901,2]
[371571193,1752358254912,-500.0,0.00018901,2]
[371571194,1752358254922,-1059.96395971,0.00018901,2]
[371571195,1752358254931,-500.0,0.00018901,2]
[371571196,1752358254941,-1059.96395971,0.00018901,2]
[371571197,1752358254950,-1059.96395971,0.00018901,2]
[371571198,1752358254959,-315.28801545,0.00018901,2]
[371571199,1752358254969,-500.0,0.00018901,2]
[371571200,1752358254978,-500.0,0.00018901,2]
[371571201,1752358254988,-1059.96395971,0.00018901,2]
[371571202,1752358254998,-500.0,0.00018901,2]
[371571203,1752358255007,-1059.96395971,0.00018901,2]
[371571204,1752358255017,-500.0,0.00018901,2]
[371571205,1752358255027,-1059.96395971,0.00018901,2]
[371571206,1752358255037,-500.0,0.00018901,2]
[371571207,1752358255046,-500.0,0.00018901,2]
[371571208,1752358255055,-1059.96395971,0.00018901,2]
[371571209,1752358255065,-1059.96395971,0.00018901,2]
[371571210,1752358255075,-500.0,0.00018901,2]
[371571211,1752358255085,-1059.96395971,0.00018901,2]
[371571212,1752358255097,-1059.96395971,0.00018901,2]
[371571213,1752358255107,-500.0,0.00018901,2]
[371571214,1752358255117,-1059.96395971,0.00018901,2]
[371571215,1752358255127,-500.0,0.00018901,2]
[371571216,1752358255138,-1059.96395971,0.00018901,2]
[371571217,1752358255148,-500.0,0.00018901,2]
[371571218,1752358255158,-1059.96395971,0.00018901,2]
[371571219,1752358255167,-1059.96395971,0.00018901,2]
[371571220,1752358255177,-1059.96395971,0.00018901,2]
[371571221,1752358255187,-517.5,0.00018902,2]
[371571222,1752358255196,-1585.13,0.00018902,2]
[371571223,1752358255206,-640.66,0.00018902,2]
[371571224,1752358255215,-642.54,0.00018902,2]
[371571225,1752358255225,-706.14,0.00018902,2]
[371571226,1752358255235,-691.7,0.00018902,2]
[371571227,1752358255244,-864.17,0.00018902,2]
[371571228,1752358255254,-489.15,0.00018902,2]
[371571229,1752358255264,-460.0,0.00018904,2]
[371571230,1752358255274,-460.0,0.00018904,2]
[371571231,1752358255287,-505.82,0.00018904,2]
[371571232,1752358255296,-460.0,0.00018904,2]
[371571233,1752358255306,-460.0,0.00018904,2]
[371571234,1752358255315,-181.87,0.00018904,2]
[371571235,1752358255325,-460.0,0.00018904,2]
[371571236,1752358255335,-479.43,0.00018904,2]
[371571237,1752358255345,-761.68,0.00018904,2]
[371571238,1752358255356,-460.0,0.00018904,2]
[371571239,1752358255366,-460.0,0.00018904,2]
[371571240,1752358255375,-841.86,0.00018904,2]
[371571241,1752358255385,-460.0,0.00018904,2]
[371571242,1752358255394,-780.97,0.00018904,2]
[371571243,1752358255404,-460.0,0.00018904,2]
[371571244,1752358255413,-766.15,0.00018904,2]
[371571245,1752358255423,-460.0,0.00018904,2]
[371571246,1752358255433,-489.39,0.00018904,2]
[371571247,1752358255442,-460.0,0.00018904,2]
[371571248,1752358255452,-460.0,0.00018904,2]
[371571249,1752358255462,-460.0,0.00018904,2]
[371571250,1752358255473,-460.0,0.00018904,2]
[371571251,1752358255483,-785.41,0.00018904,2]
[371571252,1752358255492,-568.88,0.00018904,2]
[371571253,1752358255502,-494.63,0.00018904,2]
[371571254,1752358255511,-460.0,0.00018904,2]
[371571255,1752358255521,-460.0,0.00018904,2]
[371571256,1752358255530,-460.0,0.00018904,2]
[371571257,1752358255540,-2095.41,0.00018904,2]
[371571258,1752358255549,-460.0,0.00018904,2]
[371571259,1752358255559,-460.0,0.00018904,2]
[371571260,1752358255569,-460.0,0.00018904,2]
[371571261,1752358255579,-746.48,0.00018904,2]
[371571262,1752358255588,-460.0,0.00018904,2]
[371571263,1752358255599,-1084.72,0.00018904,2]
[371571264,1752358255609,-460.0,0.00018904,2]
[371571265,1752358255619,-460.0,0.00018904,2]
[371571266,1752358255628,-1452.21,0.00018904,2]
[371571267,1752358255638,-460.0,0.00018904,2]
[371571268,1752358255647,-460.0,0.00018904,2]
[371571269,1752358255657,-4048.32,0.00018904,2]
[371571270,1752358255667,-888.82,0.00018904,2]
[371571271,1752358255681,-538.28,0.00018904,2]
[371571272,1752358255690,-460.0,0.00018904,2]
[371571273,1752358255700,-460.0,0.00018904,2]
[371571274,1752358255709,-460.0,0.00018904,2]
[371571275,1752358255719,-460.0,0.00018904,2]
[371571276,1752358255728,-460.0,0.00018904,2]
[371571277,1752358255738,-460.0,0.00018904,2]
[371571278,1752358255747,-1107.74,0.00018904,2]
[371571279,1752358255756,-467.32,0.00018904,2]
[371571280,1752358255766,-460.0,0.00018904,2]
[371571281,1752358255774,-577.85,0.00018904,2]
[371571282,1752358255784,-460.0,0.00018904,2]
[371571283,1752358255795,-757.63,0.00018904,2]
[371571284,1752358255804,-460.0,0.00018904,2]
[371571285,1752358255815,-460.0,0.00018904,2]
[371571286,1752358255826,-495.29,0.00018904,2]
[371571287,1752358255836,-595.14,0.00018904,2]
[371571288,1752358255846,-460.0,0.00018904,2]
[371571289,1752358255855,-460.0,0.00018904,2]
[371571290,1752358255865,-460.0,0.00018904,2]
[371571291,1752358255874,-702.1,0.00018904,2]
[371571292,1752358255886,-460.0,0.00018904,2]
[371571293,1752358255896,-460.0,0.00018904,2]
[371571294,1752358255906,-460.0,0.00018904,2]
[371571295,1752358255915,-460.0,0.00018904,2]
[371571296,1752358255925,-804.39,0.00018904,2]
[371571297,1752358255934,-460.0,0.00018904,2]
[371571298,1752358255944,-460.0,0.00018904,2]
[371571299,1752358255953,-460.0,0.00018904,2]
[371571300,1752358255963,-460.0,0.00018904,2]
[371571301,1752358255973,-460.0,0.00018904,2]
[371571302,1752358255983,-460.0,0.00018904,2]
[371571303,1752358255992,-460.0,0.00018904,2]
[371571304,1752358256002,-772.88,0.00018904,2]
[371571305,1752358256011,-460.0,0.00018904,2]
[371571306,1752358256021,-460.0,0.00018904,2]
[371571307,1752358256030,-460.0,0.00018904,2]
[371571308,1752358256040,-1015.87125213,0.00018928,2]
[371571309,1752358256050,-1803.03891771,0.00019072,2]
[371571310,1752358256060,-500.0,0.00019173,2]
[371571311,1752358256070,-500.0,0.00019173,2]
[371571312,1752358256080,-501.76611946,0.00019173,2]
[371571313,1752358256089,-500.0,0.00019173,2]
[371571314,1752358256099,-500.0,0.00019173,2]
[371571315,1752358256108,-500.0,0.00019173,2]
[371571316,1752358256118,-188.85272705,0.00019173,2]
[371571317,1752358256127,-500.0,0.00019173,2]
[371571318,1752358256137,-500.0,0.00019173,2]
[371571319,1752358256146,-501.13905627,0.00019173,2]
[371571320,1752358256156,-500.0,0.00019173,2]
[371571321,1752358256166,-500.0,0.00019173,2]
[371571322,1752358256175,-500.0,0.00019173,2]
[371571323,1752358256184,-500.0,0.00019173,2]
[371571324,1752358256194,-500.0,0.00019173,2]
[371571325,1752358256204,-500.0,0.00019173,2]
[371571326,1752358256213,-500.0,0.00019173,2]
[371571327,1752358256223,-500.0,0.00019173,2]
[371571328,1752358256232,-500.0,0.00019173,2]
[371571329,1752358256241,-158.0,0.00019173,2]
[371571330,1752358256251,-500.0,0.00019173,2]
[371571331,1752358256260,-500.0,0.00019173,2]
[371571332,1752358256270,-517.5,0.00019176,2]
[371571333,1752358256279,-1585.13,0.00019176,2]
[371571334,1752358256288,-640.66,0.00019176,2]
[371571335,1752358256298,-642.54,0.00019176,2]
[371571336,1752358256308,-706.14,0.00019176,2]
[371571337,1752358256403,-691.7,0.00019176,2]
[371571338,1752358256414,-864.17,0.00019176,2]
[371571339,1752358256423,-489.15,0.00019176,2]
[371571340,1752358256434,-460.0,0.00019178,2]
[371571341,1752358256443,-460.0,0.00019178,2]
[371571342,1752358256452,-505.82,0.00019178,2]
[371571343,1752358256462,-460.0,0.00019178,2]
[371571344,1752358256471,-288.04854768,0.00019178,2]
[371571345,1752358256481,-460.0,0.00019178,2]
[371571346,1752358256490,-479.43,0.00019178,2]
[371571347,1752358256501,-761.68,0.00019178,2]
[371571348,1752358256511,-460.0,0.00019178,2]
[371571349,1752358256521,-460.0,0.00019178,2]
[371571350,1752358256530,-841.86,0.00019178,2]
[371571351,1752358256540,-202.47731101,0.00019178,2]
[371571352,1752358256550,-780.97,0.00019178,2]
[371571353,1752358256560,-460.0,0.00019178,2]
[371571354,1752358256570,-766.15,0.00019178,2]
[371571355,1752358256579,-460.0,0.00019178,2]
[371571356,1752358256589,-489.39,0.00019178,2]
[371571357,1752358256599,-460.0,0.00019178,2]
[371571358,1752358256609,-460.0,0.00019178,2]
[371571359,1752358256619,-460.0,0.00019178,2]
[371571360,1752358256628,-460.0,0.00019178,2]
[371571361,1752358256638,-785.41,0.00019178,2]
[371571362,1752358256647,-568.88,0.00019178,2]
[371571363,1752358256657,-494.63,0.00019178,2]
[371571364,1752358256666,-510.36978745,0.00019178,2]
[371571365,1752358256676,-460.0,0.00019178,2]
[371571366,1752358256685,-460.0,0.00019178,2]
[371571367,1752358256695,-2095.41,0.00019178,2]
[371571368,1752358256704,-460.0,0.00019178,2]
[371571369,1752358256713,-460.0,0.00019178,2]
[371571370,1752358256723,-460.0,0.00019178,2]
[371571371,1752358256732,-746.48,0.00019178,2]
[371571372,1752358256742,-460.0,0.00019178,2]
[371571373,1752358256752,-1084.72,0.00019178,2]
[371571374,1752358256762,-460.0,0.00019178,2]
[371571375,1752358256771,-460.0,0.00019178,2]
[371571376,1752358256780,-1452.21,0.00019178,2]
[371571377,1752358256790,-460.0,0.00019178,2]
[371571378,1752358256799,-460.0,0.00019178,2]
[371571379,1752358256808,-4048.32,0.00019178,2]
[371571380,1752358256817,-888.82,0.00019178,2]
[371571381,1752358256826,-538.28,0.00019178,2]
[371571382,1752358256836,-460.0,0.00019178,2]
[371571383,1752358256846,-460.0,0.00019178,2]
[371571384,1752358256855,-460.0,0.00019178,2]
[371571385,1752358256864,-460.0,0.00019178,2]
[371571386,1752358256874,-460.0,0.00019178,2]
[371571387,1752358256885,-329.9,0.00019178,2]
[371571388,1752358256895,-1107.74,0.00019178,2]
[371571389,1752358256904,-467.32,0.00019178,2]
[371571390,1752358256913,-460.0,0.00019178,2]
[371571391,1752358256923,-577.85,0.00019178,2]
[371571392,1752358256932,-460.0,0.00019178,2]
[371571393,1752358256942,-757.63,0.00019178,2]
[371571394,1752358256954,-460.0,0.00019178,2]
[371571395,1752358256965,-460.0,0.00019178,2]
[371571396,1752358256977,-495.29,0.00019178,2]
[371571397,1752358256987,-595.14,0.00019178,2]
[371571398,1752358256997,-460.0,0.00019178,2]
[371571399,1752358257006,-460.0,0.00019178,2]
[371571400,1752358257016,-460.0,0.00019178,2]
[371571401,1752358257026,-702.1,0.00019178,2]
[371571402,1752358257035,-460.0,0.00019178,2]
[371571403,1752358257045,-460.0,0.00019178,2]
[371571404,1752358257054,-460.0,0.00019178,2]
[371571405,1752358257064,-460.0,0.00019178,2]
[371571406,1752358257073,-804.39,0.00019178,2]
[371571407,1752358257083,-460.0,0.00019178,2]
[371571408,1752358257092,-460.0,0.00019178,2]
[371571409,1752358257101,-562.44782557,0.00019178,2]
[371571410,1752358257111,-460.0,0.00019178,2]
[371571411,1752358257120,-460.0,0.00019178,2]
[371571412,1752358257130,-460.0,0.00019178,2]
[371571413,1752358257140,-460.0,0.00019178,2]
[371571414,1752358257149,-772.88,0.00019178,2]
[371571415,1752358257159,-460.0,0.00019178,2]
[371571416,1752358257168,-460.0,0.00019178,2]
[371571417,1752358257179,-48154.9889144,0.00019178,2]
[371571418,1752358257188,-666.0,0.00019178,2]
[371571419,1752358257198,-452.808962,0.00019178,2]
[371571420,1752358257207,-2464.43,0.000192,2]
[371571421,1752358257217,-492.9,0.000192,2]
[371571422,1752358257226,-21077.14,0.000192,2]
[371571423,1752358257236,-2000.0,0.00019216,2]
[371571424,1752358257245,-151.0,0.000193,2]
[371571425,1752358257256,-60143.61250577,0.00019329,2]
[371571426,1752358259302,-0.05893775,0.00016773,2]
[371571427,1752358259368,-460.0,0.00016438,2]
[371571428,1752358259378,-460.0,0.00016438,2]
[371571429,1752358259387,-461.27021462,0.00016712,2]
[371571430,1752358259396,-499.94106225,0.00016773,2]
[371571431,1752358259406,-20320.9332269,0.00019329,2]
[371571432,1752358259417,-462.17922788,0.00019329,2]
[371571433,1752358259434,-460.0,0.00016712,2]
[371571434,1752358259443,-541.64666871,0.00019329,2]
[371571435,1752358259456,-18531.62837074,0.00019329,2]
[371571436,1752358259466,-1803.03891771,0.00019383,2]
[371571437,1752358259475,-500.0,0.00019415,2]
[371571438,1752358259484,-517.5,0.0001945,2]
[371571439,1752358259494,-640.66,0.0001945,2]
[371571440,1752358259504,-642.54,0.0001945,2]
[371571441,1752358259514,-706.14,0.0001945,2]
[371571442,1752358259524,-691.7,0.0001945,2]
[371571443,1752358259533,-864.17,0.0001945,2]
[371571444,1752358259543,-489.15,0.0001945,2]
[371571445,1752358259552,-460.0,0.00019452,2]
[371571446,1752358259562,-460.0,0.00019452,2]
[371571447,1752358259571,-505.82,0.00019452,2]
[371571448,1752358259580,-460.0,0.00019452,2]
[371571449,1752358259590,-479.43,0.00019452,2]
[371571450,1752358259600,-761.68,0.00019452,2]
[371571451,1752358259609,-460.0,0.00019452,2]
[371571452,1752358259619,-460.0,0.00019452,2]
[371571453,1752358259628,-841.86,0.00019452,2]
[371571454,1752358259638,-780.97,0.00019452,2]
[371571455,1752358259647,-460.0,0.00019452,2]
[371571456,1752358259657,-766.15,0.00019452,2]
[371571457,1752358259666,-460.0,0.00019452,2]
[371571458,1752358259675,-489.39,0.00019452,2]
[371571459,1752358259685,-460.0,0.00019452,2]
[371571460,1752358259695,-460.0,0.00019452,2]
[371571461,1752358259704,-460.0,0.00019452,2]
[371571462,1752358259719,-785.41,0.00019452,2]
[371571463,1752358259740,-568.88,0.00019452,2]
[371571464,1752358259758,-494.63,0.00019452,2]
[371571465,1752358259849,-460.0,0.00019452,2]
[371571466,1752358259860,-460.0,0.00019452,2]
[371571467,1752358259870,-2095.41,0.00019452,2]
[371571468,1752358259879,-460.0,0.00019452,2]
[371571469,1752358259892,-460.0,0.00019452,2]
[371571470,1752358259901,-460.0,0.00019452,2]
[371571471,1752358259911,-746.48,0.00019452,2]
[371571472,1752358259921,-460.0,0.00019452,2]
[371571473,1752358259931,-1084.72,0.00019452,2]
[371571474,1752358259940,-460.0,0.00019452,2]
[371571475,1752358259949,-460.0,0.00019452,2]
[371571476,1752358259959,-1452.21,0.00019452,2]
[371571477,1752358259969,-460.0,0.00019452,2]
[371571478,1752358259978,-460.0,0.00019452,2]
[371571479,1752358259988,-4048.32,0.00019452,2]
[371571480,1752358259997,-888.82,0.00019452,2]
[371571481,1752358260007,-538.28,0.00019452,2]
[371571482,1752358260016,-460.0,0.00019452,2]
[371571483,1752358260026,-460.0,0.00019452,2]
[371571484,1752358260036,-460.0,0.00019452,2]
[371571485,1752358260046,-460.0,0.00019452,2]
[371571486,1752358260056,-1107.74,0.00019452,2]
[371571487,1752358260066,-467.32,0.00019452,2]
[371571488,1752358260076,-460.0,0.00019452,2]
[371571489,1752358260086,-577.85,0.00019452,2]
[371571490,1752358260096,-460.0,0.00019452,2]
[371571491,1752358260105,-757.63,0.00019452,2]
[371571492,1752358260115,-460.0,0.00019452,2]
[371571493,1752358260129,-460.0,0.00019452,2]
[371571494,1752358260138,-495.29,0.00019452,2]
[371571495,1752358260147,-595.14,0.00019452,2]
[371571496,1752358260163,-460.0,0.00019452,2]
[371571497,1752358260173,-460.0,0.00019452,2]
[371571498,1752358260182,-460.0,0.00019452,2]
[371571499,1752358260192,-702.1,0.00019452,2]
[371571500,1752358260202,-460.0,0.00019452,2]
[371571501,1752358260211,-460.0,0.00019452,2]
[371571502,1752358260221,-460.0,0.00019452,2]
[371571503,1752358260231,-460.0,0.00019452,2]
[371571504,1752358260241,-804.39,0.00019452,2]
[371571505,1752358260251,-460.0,0.00019452,2]
[371571506,1752358260261,-460.0,0.00019452,2]
[371571507,1752358260271,-460.0,0.00019452,2]
[371571508,1752358260281,-499.79823277,0.00019452,2]
[371571509,1752358260291,-460.0,0.00019452,2]
[371571510,1752358260301,-772.88,0.00019452,2]
[371571511,1752358260312,-460.0,0.00019452,2]
[371571512,1752358260322,-460.0,0.00019452,2]
[371571513,1752358260332,-1803.03891771,0.00019693,2]
[371571514,1752358260342,-1015.87125213,0.000197,2]
[371571515,1752358260351,-504.12455157,0.00019721,2]
[371571516,1752358260361,-1000.0,0.00019721,2]
[371571517,1752358260370,-1000.0,0.00019721,2]
[371571518,1752358260380,-1000.0,0.00019721,2]
[371571519,1752358260390,-501.23694856,0.00019721,2]
[371571520,1752358260400,-1002.38204478,0.00019721,2]
[371571521,1752358260410,-1000.0,0.00019721,2]
[371571522,1752358260419,-1000.0,0.00019721,2]
[371571523,1752358260429,-1000.0,0.00019721,2]
[371571524,1752358260438,-1000.0,0.00019721,2]
[371571525,1752358260448,-1000.0,0.00019721,2]
[371571526,1752358260458,-501.22281008,0.00019721,2]
[371571527,1752358260467,-517.5,0.00019724,2]
[371571528,1752358260477,-640.66,0.00019724,2]
[371571529,1752358260486,-642.54,0.00019724,2]
[371571530,1752358260495,-706.14,0.00019724,2]
[371571531,1752358260504,-691.7,0.00019724,2]
[371571532,1752358260514,-864.17,0.00019724,2]
[371571533,1752358260524,-489.15,0.00019724,2]
[371571534,1752358260534,-323.89491797,0.00019726,2]
[371571535,1752358260543,-460.0,0.00019726,2]
[371571536,1752358260552,-505.82,0.00019726,2]
[371571537,1752358260562,-460.0,0.00019726,2]
[371571538,1752358260571,-479.43,0.00019726,2]
[371571539,1752358260580,-761.68,0.00019726,2]
[371571540,1752358260590,-460.0,0.00019726,2]
[371571541,1752358260599,-460.0,0.00019726,2]
[371571542,1752358260609,-841.86,0.00019726,2]
[371571543,1752358260619,-780.97,0.00019726,2]
[371571544,1752358260628,-460.0,0.00019726,2]
[371571545,1752358260638,-766.15,0.00019726,2]
[371571546,1752358260647,-489.39,0.00019726,2]
[371571547,1752358260656,-460.0,0.00019726,2]
[371571548,1752358260666,-460.0,0.00019726,2]
[371571549,1752358260676,-460.0,0.00019726,2]
[371571550,1752358260685,-785.41,0.00019726,2]
[371571551,1752358260695,-568.88,0.00019726,2]
[371571552,1752358260704,-494.63,0.00019726,2]
[371571553,1752358260714,-460.0,0.00019726,2]
[371571554,1752358260723,-460.0,0.00019726,2]
[371571555,1752358260733,-2095.41,0.00019726,2]
[371571556,1752358260742,-460.0,0.00019726,2]
[371571557,1752358260751,-460.0,0.00019726,2]
[371571558,1752358260763,-460.0,0.00019726,2]
[371571559,1752358260773,-746.48,0.00019726,2]
[371571560,1752358260783,-460.0,0.00019726,2]
[371571561,1752358260792,-1084.72,0.00019726,2]
[371571562,1752358260802,-460.0,0.00019726,2]
[371571563,1752358260811,-460.0,0.00019726,2]
[371571564,1752358260821,-460.0,0.00019726,2]
[371571565,1752358260830,-1452.21,0.00019726,2]
[371571566,1752358260840,-460.0,0.00019726,2]
[371571567,1752358260850,-4048.32,0.00019726,2]
[371571568,1752358260860,-888.82,0.00019726,2]
[371571569,1752358260871,-538.28,0.00019726,2]
[371571570,1752358260880,-460.0,0.00019726,2]
[371571571,1752358260894,-460.0,0.00019726,2]
[371571572,1752358260904,-460.0,0.00019726,2]
[371571573,1752358260913,-460.0,0.00019726,2]
[371571574,1752358260923,-1107.74,0.00019726,2]
[371571575,1752358260932,-467.32,0.00019726,2]
[371571576,1752358260942,-460.0,0.00019726,2]
[371571577,1752358260952,-577.85,0.00019726,2]
[371571578,1752358260961,-460.0,0.00019726,2]
[371571579,1752358260971,-757.63,0.00019726,2]
[371571580,1752358260981,-460.0,0.00019726,2]
[371571581,1752358260990,-460.0,0.00019726,2]
[371571582,1752358260999,-495.29,0.00019726,2]
[371571583,1752358261010,-595.14,0.00019726,2]
[371571584,1752358261020,-173.81264565,0.00019726,2]
[371571585,1752358261030,-460.0,0.00019726,2]
[371571586,1752358261039,-460.0,0.00019726,2]
[371571587,1752358261049,-702.1,0.00019726,2]
[371571588,1752358261058,-262.96,0.00019726,2]
[371571589,1752358261067,-460.0,0.00019726,2]
[371571590,1752358261076,-460.0,0.00019726,2]
[371571591,1752358261085,-460.0,0.00019726,2]
[371571592,1752358261094,-804.39,0.00019726,2]
[371571593,1752358261103,-460.0,0.00019726,2]
[371571594,1752358261113,-460.0,0.00019726,2]
[371571595,1752358261122,-460.0,0.00019726,2]
[371571596,1752358261132,-772.88,0.00019726,2]
[371571597,1752358261141,-460.0,0.00019726,2]
[371571598,1752358261150,-295.47,0.00019726,2]
[371571599,1752358261160,-2500.0,0.00019764,2]
[371571600,1752358261170,-151.0,0.000198,2]
[371571601,1752358261179,-151.0,0.00019826,2]
[371571602,1752358261188,-151.0,0.00019826,2]
[371571603,1752358261198,-207.4,0.00019826,2]
[371571604,1752358261207,-151.0,0.00019826,2]
[371571605,1752358261216,-151.0,0.00019826,2]
[371571606,1752358261226,-151.0,0.00019826,2]
[371571607,1752358261235,-151.0,0.00019826,2]
[371571608,1752358261245,-151.0,0.00019826,2]
[371571609,1752358261254,-151.0,0.00019826,2]
[371571610,1752358261264,-151.0,0.00019826,2]
[371571611,1752358261273,-151.0,0.00019826,2]
[371571612,1752358261282,-151.0,0.00019826,2]
[371571613,1752358261292,-151.0,0.00019826,2]
[371571614,1752358261302,-259.6805492,0.00019826,2]
[371571615,1752358261311,-517.5,0.00019998,2]
[371571616,1752358261320,-640.66,0.00019998,2]
[371571617,1752358261330,-642.54,0.00019998,2]
[371571618,1752358261339,-706.14,0.00019998,2]
[371571619,1752358261349,-691.7,0.00019998,2]
[371571620,1752358261358,-864.17,0.00019998,2]
[371571621,1752358261368,-489.15,0.00019998,2]
[371571622,1752358261378,-641.807192,0.0002,2]
[371571623,1752358261387,-460.0,0.0002,2]
[371571624,1752358261397,-505.82,0.0002,2]
[371571625,1752358261493,-460.0,0.0002,2]
[371571626,1752358261503,-479.43,0.0002,2]
[371571627,1752358261514,-761.68,0.0002,2]
[371571628,1752358261523,-460.0,0.0002,2]
[371571629,1752358261532,-460.0,0.0002,2]
[371571630,1752358261542,-841.86,0.0002,2]
[371571631,1752358261551,-780.97,0.0002,2]
[371571632,1752358261561,-766.15,0.0002,2]
[371571633,1752358261571,-489.39,0.0002,2]